[Event "2nd Goa GM Open 2019"]
[Site "Goa"]
[Date "2019.06.18"]
[Round "1.2"]
[White "Pantsulaia, Levan"]
[Black "Franco Valencia, Angela"]
[Result "1-0"]
[ECO "A34"]
[WhiteElo "2614"]
[BlackElo "2169"]
[Annotator "RC"]
[PlyCount "91"]
[EventDate "2019.06.17"]
[EventType "swiss"]
[EventCountry "IND"]
[SourceTitle "playchess.com"]
[Source "ChessBase"]
[SourceQuality "1"]
[TimeControl "5400+30"]

1. Nf3 {[%emt 0:00:00]} c5 {[%emt 0:00:00]} 2. c4 {[%emt 0:00:00]} Nf6 {[%emt 0:00:12]} 3. Nc3 {[%emt 0:00:08]} d5 {[%emt 0:03:21]} 4. cxd5 {[%emt 0:00:09]} Nxd5 {[%emt 0:00:05]} 5. g3 {[%emt 0:00:32]} Nc6 {[%emt 0:00:48]} 6. Bg2 {[%emt 0:00:09]} Nxc3 {[%emt 0:03:33]} 7. bxc3 {[%emt 0:00:09]} e5 {[%emt 0:00:07]} 8. d3 {[%emt 0:00:28]} Be7 {[%emt 0:00:19]} 9. Nd2 {[%emt 0:00:50]} Qc7 {[%emt 0:04:53]} 10. Nc4 {[%emt 0:02:19]} Be6 {[%emt 0:02:55]} 11. Qa4 {[%emt 0:01:39]} Bd7 {[%emt 0:02:45]} 12. Rb1 {[%emt 0:01:15]} O-O {[%emt 0:02:07]} 13. Ne3 {[%emt 0:02:43]} Qa5 {[%emt 0:19:04]} 14. Qc2 {[%emt 0:00:30]} b5 15. O-O {[%emt 0:09:11]} Rab8 {[%emt 0:01:00]} 16. h4 {[%emt 0:01:52]} Bd6 {[%emt 0:06:01]} 17. Bd2 {[%emt 0:01:34]} Rfc8 {[%emt 0:09:59]} 18. Rb2 {[%emt 0:00:46]} Qd8 {[%emt 0:05:14]} 19. Qb1 {[%emt 0:07:52]} a6 {[%emt 0:06:26]} 20. a4 {[%emt 0:05:28]} bxa4 {[%emt 0:04:18]} 21. Nc4 {[%emt 0:06:37]} Bc7 {[%emt 0:04:16]} 22. Bg5 {[%emt 0:02:21]} Qe8 {[%emt 0:04:52]} 23. Be3 {[%emt 0:01:25]} Rxb2 {[%emt 0:03:08]} 24. Nxb2 {[%emt 0:03:07]} Na5 {[%emt 0:02:51]} 25. Bxc5 {[%emt 0:01:03]} Nb3 {[%emt 0:00:07]} 26. Be3 {[%emt 0:00:08]} Rb8 {[%emt 0:01:39]} 27. Qc2 {[%emt 0:07:05]} Bc6 {[%emt 0:03:10]} 28. Nc4 {[%emt 0:04:20]} Bxg2 {[%emt 0:03:35]} 29. Kxg2 {[%emt 0:00:06]} Qc6+ {[%emt 0:00:16]} 30. f3 {[%emt 0:00:07]} f5 {[%emt 0:01:40]} 31. Bg1 {[%emt 0:01:39]} e4 {[%emt 0:01:09]} 32. Ne3 {[%emt 0:00:05]} f4 {[%emt 0:01:16]} 33. Nf5 {[%emt 0:05:16]} exf3+ {[%emt 0:01:53]} 34. exf3 {[%emt 0:01:00]} Re8 {[%emt 0:00:12]} 35. g4 {[%emt 0:01:16]} Be5 {[%emt 0:03:24]} 36. d4 {[%emt 0:01:18]} Bf6 {[%emt 0:00:20]} 37. c4 {[%emt 0:03:16]} Na5 {[%emt 0:00:56]} 38. c5 {[%emt 0:00:34]} Qb5 {[%emt 0:00:31]} 39. Bf2 {[%emt 0:01:12]} Nc4 {[%emt 0:00:30]} 40. Rb1 {[%emt 0:02:05]} Re2 {[%emt 0:00:08]} 41. Qxe2 {[%emt 0:00:16]} Ne3+ {[%emt 0:00:03]} 42. Qxe3 {[%emt 0:00:09]} fxe3 {[%emt 0:00:04]} 43. Rxb5 {[%emt 0:00:11]} axb5 {[%emt 0:00:02]} 44. Bxe3 {[%emt 0:00:33]} b4 {[%emt 0:00:59]} 45. c6 {[%emt 0:00:18]} Bd8 {[%emt 0:00:16]} 46. d5 {[%emt 0:00:07]} 1-0

[Event "2nd Goa GM Open 2019"]
[Site "Goa"]
[Date "2019.06.18"]
[Round "1.7"]
[White "Ram, S. Krishnan"]
[Black "Aleksandrov, Aleksej"]
[Result "1-0"]
[ECO "D38"]
[WhiteElo "2152"]
[BlackElo "2588"]
[Annotator "ChessBase"]
[PlyCount "77"]
[EventDate "2019.06.17"]
[EventType "swiss"]
[EventCountry "IND"]
[SourceTitle "playchess.com"]
[Source "ChessBase"]
[SourceQuality "1"]
[TimeControl "5400+30"]

1. d4 {[%emt 0:00:07]} d5 {[%emt 0:00:00]} 2. Nf3 {[%emt 0:00:05]} Nf6 {[%emt 0:00:11]} 3. c4 {[%emt 0:00:30]} e6 {[%emt 0:00:10]} 4. Nc3 {[%emt 0:00:08]} Bb4 {[%emt 0:00:04]} 5. Qa4+ {[%emt 0:00:07]} Nc6 {[%emt 0:00:05]} 6. e3 {[%emt 0:00:06]} O-O {[%emt 0:00:19]} 7. Bd3 {[%emt 0:00:10]} a6 {[%emt 0:09:48]} 8. O-O {[%emt 0:03:42]} Bd6 {[%emt 0:00:18]} 9. c5 {[%emt 0:04:39]} Be7 {[%emt 0:00:07]} 10. b4 {[%emt 0:00:05]} Rb8 {[%emt 0:08:06]} 11. a3 {[%emt 0:04:53]} Re8 {[%emt 0:00:07]} 12. Qc2 {[%emt 0:01:13]} h6 {[%emt 0:00:20]} 13. Bb2 {[%emt 0:01:24]} b6 {[%emt 0:07:32]} 14. Ne2 {[%emt 0:17:01]} bxc5 {[%emt 0:05:05]} 15. dxc5 {[%emt 0:03:24]} Bb7 {[%emt 0:00:50]} 16. Ned4 {[%emt 0:00:48]} Nxd4 {[%emt 0:02:20]} 17. Bxd4 {[%emt 0:00:27]} c6 {[%emt 0:00:42]} 18. Ne5 {[%emt 0:00:51]} a5 {[%emt 0:07:58]} 19. f4 {[%emt 0:08:47]} axb4 {[%emt 0:07:36]} 20. axb4 {[%emt 0:00:06]} Qc7 {[%emt 0:00:03]} 21. g4 {[%emt 0:07:05]} Rf8 {[%emt 0:01:20]} 22. g5 {[%emt 0:03:21]} hxg5 {[%emt 0:00:07]} 23. fxg5 {[%emt 0:00:04]} Ne4 {[%emt 0:00:07]} 24. Bxe4 {[%emt 0:00:08]} dxe4 {[%emt 0:00:03]} 25. g6 {[%emt 0:02:48]} fxg6 {[%emt 0:04:18]} 26. Qxe4 {[%emt 0:03:36]} Bg5 {[%emt 0:04:38]} 27. Nxg6 {[%emt 0:04:14]} Rxf1+ {[%emt 0:00:07]} 28. Rxf1 {[%emt 0:00:03]} Re8 {[%emt 0:00:09]} 29. Be5 {[%emt 0:03:27]} Qd8 {[%emt 0:06:15]} 30. Bd6 {[%emt 0:00:15]} Ba6 {[%emt 0:06:40]} 31. Rf2 {[%emt 0:05:26]} Bf6 {[%emt 0:02:27]} 32. Qxc6 {[%emt 0:06:16]} Bc4 {[%emt 0:05:32]} 33. Qf3 {[%emt 0:02:04]} Qa8 {[%emt 0:05:43]} 34. Ne7+ {[%emt 0:06:24]} Bxe7 {[%emt 0:00:12]} 35. Qf7+ {[%emt 0:05:52]} Kh8 {[%emt 0:00:16]} 36. Be5 {[%emt 0:01:04]} Bf8 {[%emt 0:00:08]} 37. Qh5+ {[%emt 0:01:03]} Kg8 {[%emt 0:00:01]} 38. Qf7+ {[%emt 0:00:01]} Kh8 39. Rf6 {[%emt 0:00:35]} 1-0

[Event "2nd Goa GM Open 2019"]
[Site "Goa"]
[Date "2019.06.18"]
[Round "1.9"]
[White "Ramu, K.."]
[Black "Jojua, Davit"]
[Result "*"]
[ECO "B30"]
[WhiteElo "2136"]
[BlackElo "2580"]
[Annotator "RC"]
[PlyCount "86"]
[EventDate "2019.06.17"]
[EventType "swiss"]
[EventCountry "IND"]
[SourceTitle "playchess.com"]
[Source "ChessBase"]
[SourceQuality "1"]
[TimeControl "5400+30"]

1. e4 {[%emt 0:00:00]} c5 {[%emt 0:00:00]} 2. Nf3 {[%emt 0:00:00]} Nc6 {[%emt 0:00:00]} 3. d3 {[%emt 0:00:50]} g6 {[%emt 0:00:14]} 4. g3 {[%emt 0:00:12]} Bg7 {[%emt 0:00:03]} 5. Bg2 {[%emt 0:00:12]} d6 {[%emt 0:00:05]} 6. O-O {[%emt 0:00:10]} Nf6 {[%emt 0:00:03]} 7. Re1 {[%emt 0:00:11]} O-O {[%emt 0:00:05]} 8. e5 {[%emt 0:03:09]} dxe5 {[%emt 0:26:35]} 9. Nxe5 {[%emt 0:00:25]} Nxe5 {[%emt 0:00:04]} 10. Rxe5 {[%emt 0:00:09]} Ng4 {[%emt 0:03:50]} 11. Re2 {[%emt 0:20:42]} Nh6 {[%emt 0:06:42]} 12. Nd2 {[%emt 0:15:17]} Nf5 {[%emt 0:12:04]} 13. Re1 {[%emt 0:08:06]} Nd4 {[%emt 0:02:22]} 14. c3 {[%emt 0:17:34]} Nf5 {[%emt 0:13:14]} 15. Nc4 {[%emt 0:06:22]} f6 {[%emt 0:09:09]} 16. a4 {[%emt 0:02:27]} Rb8 {[%emt 0:03:35]} 17. a5 {[%emt 0:04:48]} Kh8 {[%emt 0:01:54]} 18. h4 {[%emt 0:02:29]} e5 {[%emt 0:01:30]} 19. h5 {[%emt 0:01:12]} g5 {[%emt 0:01:50]} 20. Be3 {[%emt 0:04:06]} Qc7 {[%emt 0:02:45]} 21. g4 {[%emt 0:01:34]} Nh6 {[%emt 0:01:33]} 22. f3 {[%emt 0:02:22]} Rd8 {[%emt 0:03:23]} 23. Qe2 {[%emt 0:00:34]} b6 {[%emt 0:04:03]} 24. axb6 {[%emt 0:00:51]} axb6 {[%emt 0:00:01]} 25. Rad1 {[%emt 0:04:43]} Ba6 {[%emt 0:03:15]} 26. b4 {[%emt 0:01:34]} Bf8 {[%emt 0:01:13]} 27. Rb1 {[%emt 0:01:07]} Ng8 {[%emt 0:01:47]} 28. b5 {[%emt 0:00:06]} Bb7 {[%emt 0:00:15]} 29. Red1 {[%emt 0:00:40]} Ne7 {[%emt 0:00:20]} 30. Nd2 {[%emt 0:00:58]} h6 {[%emt 0:01:47]} 31. c4 {[%emt 0:00:41]} f5 {[%emt 0:00:31]} 32. Nf1 {[%emt 0:00:25]} Bg7 {[%emt 0:00:13]} 33. Bc1 {[%emt 0:00:36]} fxg4 {[%emt 0:01:12]} 34. fxg4 {[%emt 0:00:16]} Bxg2 {[%emt 0:00:07]} 35. Qxg2 {[%emt 0:00:14]} e4 {[%emt 0:00:30]} 36. Qxe4 {[%emt 0:00:23]} Rd4 {[%emt 0:00:30]} 37. Qg2 {[%emt 0:00:45]} Qd7 {[%emt 0:00:18]} 38. Nh2 {[%emt 0:00:27]} Rxd3 {[%emt 0:00:14]} 39. Re1 {[%emt 0:01:05]} Qd6 {[%emt 0:00:47]} 40. Nf1 {[%emt 0:00:27]} Rf8 {[%emt 0:00:47]} 41. Bb2 {[%emt 0:00:56]} Bd4+ {[%emt 0:00:40]} 42. Kh1 {[%emt 0:00:38]} Ng8 {[%emt 0:00:44]} 43. Re3 {[%emt 0:00:40]} Rxf1+ {[%emt 0:00:29] Ree1 Rf8} *

[Event "2nd Goa GM Open 2019"]
[Site "Goa"]
[Date "2019.06.18"]
[Round "1.12"]
[White "Deepan Chakkravarthy J."]
[Black "Niraj, Saripalli"]
[Result "1-0"]
[ECO "C55"]
[WhiteElo "2557"]
[BlackElo "2127"]
[Annotator "ChessBase"]
[PlyCount "51"]
[EventDate "2019.06.17"]
[EventType "swiss"]
[EventCountry "IND"]
[SourceTitle "playchess.com"]
[Source "ChessBase"]
[SourceQuality "1"]
[TimeControl "5400+30"]

1. e4 {[%emt 0:00:00]} e5 {[%emt 0:00:10]} 2. Nf3 {[%emt 0:00:00]} Nc6 {[%emt 0:00:16]} 3. Bc4 {[%emt 0:00:00]} Nf6 {[%emt 0:02:35]} 4. d3 {[%emt 0:00:01]} h6 {[%emt 0:00:25]} 5. a4 {[%emt 0:00:54]} d6 {[%emt 0:06:55]} 6. Nc3 {[%emt 0:00:47]} g6 {[%emt 0:02:51]} 7. a5 {[%emt 0:02:02]} Bg7 {[%emt 0:06:07]} 8. h3 {[%emt 0:09:38]} O-O {[%emt 0:22:22]} 9. g4 {[%emt 0:06:20]} Nd4 {[%emt 0:00:41]} 10. g5 {[%emt 0:00:33]} hxg5 {[%emt 0:01:46]} 11. Bxg5 {[%emt 0:05:29]} Ne6 {[%emt 0:01:42]} 12. h4 {[%emt 0:01:17]} Nxg5 {[%emt 0:05:49]} 13. hxg5 {[%emt 0:02:10]} Nh5 {[%emt 0:03:50]} 14. a6 {[%emt 0:01:51]} Nf4 {[%emt 0:04:56]} 15. Nd5 {[%emt 0:11:40]} b5 {[%emt 0:11:03]} 16. Bb3 {[%emt 0:18:52]} Bg4 {[%emt 0:10:06]} 17. Nxf4 {[%emt 0:07:56]} exf4 {[%emt 0:00:08]} 18. Rh4 {[%emt 0:00:06]} Bxf3 {[%emt 0:02:35]} 19. Qxf3 {[%emt 0:00:06]} Bxb2 {[%emt 0:09:23]} 20. Rb1 {[%emt 0:01:45]} Be5 {[%emt 0:00:51]} 21. Ke2 {[%emt 0:02:33]} Kg7 {[%emt 0:01:11]} 22. Rh7+ {[%emt 0:00:41]} Kg8 {[%emt 0:00:59]} 23. Qg4 {[%emt 0:02:41]} Bg7 {[%emt 0:00:00]} 24. Qf3 {[%emt 0:00:00]} Be5 {[%emt 0:01:00]} 25. Qg4 {[%emt 0:01:00]} d5 {[%emt 0:02:52]} 26. Rbh1 {[%emt 0:00:08]} 1-0

[Event "2nd Goa GM Open 2019"]
[Site "Goa"]
[Date "2019.06.18"]
[Round "1.13"]
[White "Thrish Karthik"]
[Black "Paichadze, Luka"]
[Result "0-1"]
[ECO "B10"]
[WhiteElo "2126"]
[BlackElo "2557"]
[Annotator "ChessBase"]
[PlyCount "104"]
[EventDate "2019.06.17"]
[EventType "swiss"]
[EventCountry "IND"]
[SourceTitle "playchess.com"]
[Source "ChessBase"]
[SourceQuality "1"]
[TimeControl "5400+30"]

1. e4 {[%emt 0:00:00]} c6 {[%emt 0:00:00]} 2. Nf3 {[%emt 0:00:00]} d5 {[%emt 0:00:00]} 3. exd5 {[%emt 0:00:00]} cxd5 {[%emt 0:00:00]} 4. d4 {[%emt 0:00:00]} Nc6 {[%emt 0:00:11]} 5. Ne5 {[%emt 0:00:10]} Qb6 {[%emt 0:02:52]} 6. c3 {[%emt 0:11:38]} e6 {[%emt 0:00:55]} 7. Bd3 {[%emt 0:05:24]} Bd6 {[%emt 0:01:45]} 8. f4 {[%emt 0:06:55]} Nh6 9. Nd2 {[%emt 0:13:54]} O-O {[%emt 0:17:36]} 10. Qh5 {[%emt 0:13:43]} f6 {[%emt 0:07:18]} 11. Ndf3 {[%emt 0:11:44]} Qc7 {[%emt 0:33:43]} 12. O-O {[%emt 0:10:04]} Ne7 {[%emt 0:01:02]} 13. g4 {[%emt 0:09:55]} Qd8 {[%emt 0:01:32]} 14. Bd2 {[%emt 0:06:02]} Bc7 {[%emt 0:03:13]} 15. Ng5 {[%emt 0:05:34]} f5 {[%emt 0:08:09]} 16. Ngf3 {[%emt 0:02:11]} fxg4 {[%emt 0:06:19]} 17. Nxg4 {[%emt 0:00:40]} Nhf5 {[%emt 0:00:30]} 18. Kh1 {[%emt 0:00:33]} Bd7 {[%emt 0:00:46]} 19. Ng5 {[%emt 0:00:28]} h6 {[%emt 0:00:06]} 20. Rg1 {[%emt 0:00:30]} Qe8 {[%emt 0:01:14]} 21. Qxe8 {[%emt 0:00:31]} Raxe8 {[%emt 0:00:15]} 22. Nf3 {[%emt 0:00:19]} a6 {[%emt 0:01:06]} 23. Nfe5 {[%emt 0:00:13]} Bc8 {[%emt 0:00:12]} 24. Rg2 {[%emt 0:00:50]} h5 {[%emt 0:01:06]} 25. Nf2 {[%emt 0:00:38]} Bxe5 {[%emt 0:00:45]} 26. dxe5 {[%emt 0:00:26]} Bd7 {[%emt 0:00:11]} 27. Rg5 {[%emt 0:00:22]} g6 {[%emt 0:00:27]} 28. Be2 {[%emt 0:00:26]} Kf7 {[%emt 0:00:42]} 29. Rag1 {[%emt 0:00:43]} Bc6 {[%emt 0:00:08]} 30. Kg2 {[%emt 0:00:30]} d4+ {[%emt 0:00:27]} 31. Kf1 {[%emt 0:00:18]} dxc3 {[%emt 0:00:04]} 32. bxc3 {[%emt 0:00:25]} Rd8 {[%emt 0:01:04]} 33. Ke1 {[%emt 0:00:28]} Nh4 {[%emt 0:00:19]} 34. R5g3 {[%emt 0:00:30]} Nef5 35. Rd3 {[%emt 0:00:45]} Rxd3 {[%emt 0:01:07]} 36. Nxd3 {[%emt 0:00:02]} Rd8 {[%emt 0:00:10]} 37. Kf2 {[%emt 0:00:37]} Bb5 {[%emt 0:00:54]} 38. Rd1 {[%emt 0:00:57]} Rxd3 {[%emt 0:02:05]} 39. Bxd3 {[%emt 0:00:17]} Bxd3 {[%emt 0:00:04]} 40. Bc1 {[%emt 0:00:45]} Bb5 {[%emt 0:00:18]} 41. Ba3 {[%emt 0:00:26]} Ke8 {[%emt 0:00:44]} 42. Bc5 {[%emt 0:00:31]} Bc6 {[%emt 0:00:08]} 43. Bb6 {[%emt 0:00:21]} Ng2 {[%emt 0:00:20]} 44. Rd8+ {[%emt 0:00:39]} Kf7 {[%emt 0:00:06]} 45. Bc5 {[%emt 0:00:31]} Nxf4 {[%emt 0:00:06]} 46. Ba3 {[%emt 0:00:28]} g5 {[%emt 0:01:33]} 47. Rf8+ {[%emt 0:00:15]} Kg7 {[%emt 0:00:09]} 48. Rf6 {[%emt 0:00:36]} Bd5 {[%emt 0:00:16]} 49. Bf8+ {[%emt 0:00:40]} Kg8 {[%emt 0:00:59]} 50. Bd6 {[%emt 0:00:11]} h4 {[%emt 0:00:21]} 51. Rf8+ {[%emt 0:00:24]} Kg7 {[%emt 0:00:07]} 52. Rc8 {[%emt 0:00:08]} g4 {[%emt 0:00:09]} 0-1

[Event "2nd Goa GM Open 2019"]
[Site "Goa"]
[Date "2019.06.18"]
[Round "1.16"]
[White "Gukesh D"]
[Black "Makhija, Aashna"]
[Result "1-0"]
[ECO "A05"]
[WhiteElo "2543"]
[BlackElo "2116"]
[Annotator "ChessBase"]
[PlyCount "97"]
[EventDate "2019.06.17"]
[EventType "swiss"]
[EventCountry "IND"]
[SourceTitle "playchess.com"]
[Source "ChessBase"]
[SourceQuality "1"]
[TimeControl "5400+30"]

1. Nf3 {[%emt 0:00:00]} Nf6 {[%emt 0:00:00]} 2. g3 {[%emt 0:01:11]} d5 {[%emt 0:00:25]} 3. Bg2 {[%emt 0:00:11]} e6 {[%emt 0:00:41]} 4. O-O {[%emt 0:00:07]} Be7 {[%emt 0:00:44]} 5. b3 {[%emt 0:01:06]} O-O {[%emt 0:00:45]} 6. Bb2 {[%emt 0:00:17]} c5 {[%emt 0:01:11]} 7. c4 {[%emt 0:03:18]} Nc6 {[%emt 0:00:56]} 8. e3 {[%emt 0:04:06]} b6 {[%emt 0:00:57]} 9. Qe2 {[%emt 0:01:54]} Ba6 {[%emt 0:01:00]} 10. Rd1 {[%emt 0:02:34]} Rc8 {[%emt 0:02:01]} 11. d3 {[%emt 0:05:17]} Qd7 {[%emt 0:02:08]} 12. Nc3 {[%emt 0:01:49]} d4 {[%emt 0:03:29]} 13. exd4 {[%emt 0:10:48]} Nxd4 {[%emt 0:00:30]} 14. Nxd4 {[%emt 0:00:30]} cxd4 {[%emt 0:00:30]} 15. Nb1 {[%emt 0:00:30]} Rfd8 {[%emt 0:00:30]} 16. Nd2 {[%emt 0:00:30]} Bb7 {[%emt 0:00:30]} 17. Bxb7 {[%emt 0:00:30]} Qxb7 {[%emt 0:00:30]} 18. Nf3 {[%emt 0:00:30]} Bc5 {[%emt 0:00:30]} 19. a3 {[%emt 0:00:30]} a5 {[%emt 0:00:30]} 20. b4 {[%emt 0:00:30]} axb4 {[%emt 0:31:12]} 21. axb4 {[%emt 0:17:46]} Bxb4 {[%emt 0:00:30]} 22. Nxd4 {[%emt 0:05:27]} Ra8 {[%emt 0:16:21]} 23. Nb5 {[%emt 0:02:33]} Be7 {[%emt 0:05:48]} 24. Bc3 {[%emt 0:10:04]} Rxa1 {[%emt 0:05:11]} 25. Bxa1 {[%emt 0:01:48]} Ne8 {[%emt 0:04:12]} 26. Be5 {[%emt 0:07:56]} Bf6 {[%emt 0:03:35]} 27. Bf4 {[%emt 0:02:06]} Be7 {[%emt 0:06:32]} 28. Rb1 {[%emt 0:08:13]} Qd7 {[%emt 0:07:35]} 29. d4 {[%emt 0:01:15]} Nd6 {[%emt 0:01:54]} 30. Bxd6 {[%emt 0:01:09]} Bxd6 {[%emt 0:00:06]} 31. Qf3 {[%emt 0:00:30]} Be7 {[%emt 0:03:52]} 32. Ra1 {[%emt 0:01:06]} Bf6 {[%emt 0:00:31]} 33. Ra7 {[%emt 0:04:02]} Qe8 {[%emt 0:00:48]} 34. Qe4 {[%emt 0:04:00]} h6 {[%emt 0:00:26]} 35. h4 {[%emt 0:00:55]} Qf8 {[%emt 0:00:36]} 36. Rc7 {[%emt 0:01:26]} Rc8 {[%emt 0:00:29]} 37. Qc6 {[%emt 0:01:09]} Rxc7 {[%emt 0:00:27]} 38. Qxc7 {[%emt 0:00:01]} Qb4 {[%emt 0:00:33]} 39. Kg2 {[%emt 0:01:10]} Qe1 {[%emt 0:00:30]} 40. Qc8+ {[%emt 0:00:40]} Kh7 {[%emt 0:00:04]} 41. Qb7 {[%emt 0:00:10]} Qe2 {[%emt 0:00:36]} 42. Qc6 {[%emt 0:00:11]} Qd3 {[%emt 0:00:44]} 43. c5 {[%emt 0:00:45]} Bxd4 {[%emt 0:00:37]} 44. Nxd4 {[%emt 0:00:26]} Qxd4 {[%emt 0:00:15]} 45. cxb6 {[%emt 0:00:04]} Qb4 {[%emt 0:00:28]} 46. b7 {[%emt 0:00:28]} e5 {[%emt 0:00:43]} 47. Qc7 {[%emt 0:00:29]} Qe4+ {[%emt 0:00:32]} 48. Kh2 {[%emt 0:00:19]} Qf3 {[%emt 0:00:35]} 49. Qc2+ {[%emt 0:00:11]} 1-0

[Event "2nd Goa GM Open 2019"]
[Site "Goa"]
[Date "2019.06.18"]
[Round "1.17"]
[White "Shawket Bin, Osman Shaon"]
[Black "Tukhaev, Adam"]
[Result "0-1"]
[ECO "D91"]
[WhiteElo "2109"]
[BlackElo "2527"]
[Annotator "ChessBase"]
[PlyCount "80"]
[EventDate "2019.06.17"]
[EventType "swiss"]
[EventCountry "IND"]
[SourceTitle "playchess.com"]
[Source "ChessBase"]
[SourceQuality "1"]
[TimeControl "5400+30"]

1. d4 {[%emt 0:00:00]} Nf6 {[%emt 0:00:08]} 2. c4 {[%emt 0:00:00]} g6 {[%emt 0:01:24]} 3. Nc3 {[%emt 0:00:09]} d5 {[%emt 0:00:34]} 4. Bg5 {[%emt 0:04:34]} Bg7 {[%emt 0:00:11]} 5. Nf3 {[%emt 0:01:19]} Ne4 {[%emt 0:01:58]} 6. Bf4 {[%emt 0:02:26]} Nxc3 {[%emt 0:00:43]} 7. bxc3 {[%emt 0:00:10]} dxc4 {[%emt 0:01:32]} 8. Qa4+ {[%emt 0:05:33]} c6 {[%emt 0:04:22]} 9. Qxc4 {[%emt 0:01:25]} Be6 {[%emt 0:00:55]} 10. Qd3 {[%emt 0:01:47]} Nd7 {[%emt 0:03:56]} 11. e4 Qa5 {[%emt 0:34:07]} 12. Nd2 {[%emt 0:25:36]} f5 {[%emt 0:07:29]} 13. Be2 {[%emt 0:18:46]} fxe4 {[%emt 0:03:52]} 14. Nxe4 {[%emt 0:01:13]} O-O {[%emt 0:01:30]} 15. Bd2 {[%emt 0:06:06]} Bf5 {[%emt 0:06:35]} 16. O-O {[%emt 0:03:04]} Kh8 {[%emt 0:05:39]} 17. Bf3 {[%emt 0:02:26]} e5 {[%emt 0:01:38]} 18. Qe2 {[%emt 0:09:25]} Bxe4 {[%emt 0:08:15]} 19. Bxe4 {[%emt 0:00:19]} exd4 {[%emt 0:01:37]} 20. cxd4 {[%emt 0:00:29]} Qa4 {[%emt 0:00:11]} 21. Rab1 {[%emt 0:04:39]} Nb6 {[%emt 0:02:16]} 22. Bc3 {[%emt 0:02:46]} Rae8 {[%emt 0:01:19]} 23. Qd3 {[%emt 0:00:28]} Qxa2 {[%emt 0:01:48]} 24. d5 {[%emt 0:01:08]} cxd5 {[%emt 0:01:09]} 25. Bxg7+ {[%emt 0:02:37]} Kxg7 {[%emt 0:00:03]} 26. Qd4+ {[%emt 0:01:23]} Rf6 {[%emt 0:04:00]} 27. Bd3 {[%emt 0:01:10]} Qd2 {[%emt 0:00:34]} 28. Rb2 {[%emt 0:01:26]} Qf4 {[%emt 0:01:25]} 29. Qc5 {[%emt 0:00:30]} Rc8 {[%emt 0:02:18]} 30. Qa5 {[%emt 0:00:01]} Qd4 {[%emt 0:00:29]} 31. Rd2 {[%emt 0:01:50]} Rc3 {[%emt 0:00:28]} 32. Qb5 {[%emt 0:00:50]} a6 {[%emt 0:01:28]} 33. Qb2 {[%emt 0:00:50]} Qc5 {[%emt 0:01:24]} 34. g4 {[%emt 0:00:35]} d4 {[%emt 0:00:08]} 35. Re1 {[%emt 0:00:27]} Rf7 {[%emt 0:00:48]} 36. Re4 {[%emt 0:00:54]} Na4 {[%emt 0:00:48]} 37. Qa2 {[%emt 0:00:20]} Rc1+ {[%emt 0:00:08]} 38. Kg2 {[%emt 0:01:08]} Nc3 {[%emt 0:00:05]} 39. Qe6 {[%emt 0:00:14]} Nxe4 {[%emt 0:00:09]} 40. Bxe4 {[%emt 0:00:27]} Re7 {[%emt 0:00:25]} 0-1

[Event "2nd Goa GM Open 2019"]
[Site "Goa"]
[Date "2019.06.18"]
[Round "1.18"]
[White "Burmakin, Vladimir"]
[Black "Santu, Mondal"]
[Result "1-0"]
[ECO "A05"]
[WhiteElo "2526"]
[BlackElo "2106"]
[Annotator "ChessBase"]
[PlyCount "141"]
[EventDate "2019.06.17"]
[EventType "swiss"]
[EventCountry "IND"]
[SourceTitle "playchess.com"]
[Source "ChessBase"]
[SourceQuality "1"]
[TimeControl "5400+30"]

1. Nf3 {[%emt 0:00:00]} Nf6 {[%emt 0:00:30]} 2. g3 {[%emt 0:00:00]} b6 {[%emt 0:00:48]} 3. Bg2 {[%emt 0:01:02]} Bb7 {[%emt 0:00:12]} 4. O-O {[%emt 0:00:38]} c5 {[%emt 0:01:23]} 5. d3 {[%emt 0:00:09]} g6 {[%emt 0:01:27]} 6. e4 {[%emt 0:00:10]} d6 {[%emt 0:01:01]} 7. a4 {[%emt 0:00:13]} Bg7 {[%emt 0:01:24]} 8. Nfd2 {[%emt 0:00:12]} Nc6 {[%emt 0:03:03]} 9. Nc4 {[%emt 0:00:08]} O-O {[%emt 0:02:33]} 10. a5 {[%emt 0:01:18]} Rc8 {[%emt 0:11:23]} 11. Nc3 {[%emt 0:01:19]} Nd7 {[%emt 0:25:50]} 12. f4 {[%emt 0:06:31]} Nxa5 {[%emt 0:00:16]} 13. Nxa5 {[%emt 0:00:12]} bxa5 {[%emt 0:00:02]} 14. Be3 {[%emt 0:01:36]} Bc6 {[%emt 0:03:33]} 15. Qd2 {[%emt 0:01:27]} Nb6 {[%emt 0:02:00]} 16. b3 {[%emt 0:01:50]} d5 {[%emt 0:06:56]} 17. exd5 {[%emt 0:15:46]} Nxd5 {[%emt 0:03:56]} 18. Nxd5 {[%emt 0:00:52]} Bxa1 {[%emt 0:01:35]} 19. Rxa1 {[%emt 0:02:53]} Bxd5 {[%emt 0:00:22]} 20. Bh3 {[%emt 0:00:46]} Rc7 {[%emt 0:05:31]} 21. Rxa5 {[%emt 0:00:09]} Ba8 {[%emt 0:01:48]} 22. Bxc5 {[%emt 0:02:34]} Qd5 {[%emt 0:08:34]} 23. Bg2 {[%emt 0:00:12]} Qe6 {[%emt 0:01:09]} 24. b4 {[%emt 0:00:47]} Bxg2 {[%emt 0:00:34]} 25. Kxg2 {[%emt 0:02:17]} Qd5+ {[%emt 0:02:03]} 26. Kg1 {[%emt 0:01:09]} Qf3 {[%emt 0:01:29]} 27. Ra1 {[%emt 0:02:05]} Qd5 {[%emt 0:04:01]} 28. Qe3 {[%emt 0:02:28]} Rd8 {[%emt 0:01:41]} 29. Qe5 {[%emt 0:04:06]} Qc6 {[%emt 0:04:04]} 30. d4 {[%emt 0:00:24]} Rcd7 {[%emt 0:01:22]} 31. c4 {[%emt 0:02:49]} Qf3 {[%emt 0:01:47]} 32. d5 {[%emt 0:00:22]} Qd3 {[%emt 0:00:49]} 33. Rc1 {[%emt 0:01:18]} f6 {[%emt 0:02:33]} 34. Qe6+ {[%emt 0:00:15]} Kg7 {[%emt 0:00:17]} 35. Bxe7 {[%emt 0:00:45]} Qd4+ {[%emt 0:00:11]} 36. Kh1 {[%emt 0:00:10]} Re8 {[%emt 0:01:01]} 37. Bxf6+ {[%emt 0:02:18]} Qxf6 {[%emt 0:00:08]} 38. Qxd7+ {[%emt 0:00:10]} Re7 {[%emt 0:00:05]} 39. Qg4 {[%emt 0:01:23]} Qb2 {[%emt 0:00:43]} 40. Rf1 {[%emt 0:00:52]} Re2 {[%emt 0:00:37]} 41. Qf3 {[%emt 0:00:40]} Rxh2+ {[%emt 0:00:53]} 42. Kg1 {[%emt 0:00:02]} Rd2 {[%emt 0:00:43]} 43. Rf2 {[%emt 0:00:35]} Qd4 {[%emt 0:00:27]} 44. Kg2 {[%emt 0:00:21]} Rd3 {[%emt 0:00:07]} 45. Qe2 {[%emt 0:00:36]} Qxc4 {[%emt 0:00:21]} 46. Rf3 {[%emt 0:01:37]} Rd4 {[%emt 0:00:43]} 47. Qxc4 {[%emt 0:02:19]} Rxc4 {[%emt 0:00:01]} 48. Ra3 {[%emt 0:00:12]} Rc7 {[%emt 0:01:06]} 49. Kf3 {[%emt 0:00:16]} Re7 {[%emt 0:00:50]} 50. Ra6 {[%emt 0:02:44]} Kf7 {[%emt 0:00:18]} 51. g4 {[%emt 0:00:39]} Rb7 {[%emt 0:00:32]} 52. Ra4 {[%emt 0:00:50]} Re7 {[%emt 0:00:25]} 53. g5 {[%emt 0:01:22]} Ke8 {[%emt 0:00:39]} 54. b5 {[%emt 0:00:42]} Kd8 {[%emt 0:00:20]} 55. Ra6 {[%emt 0:00:08]} Kc8 {[%emt 0:00:39]} 56. Rc6+ {[%emt 0:01:00]} Kd8 {[%emt 0:00:38]} 57. Ra6 {[%emt 0:00:36]} Kc8 {[%emt 0:00:11]} 58. d6 {[%emt 0:00:20]} Rb7 {[%emt 0:00:06]} 59. Ke3 {[%emt 0:01:30]} Kd7 {[%emt 0:00:23]} 60. Ke4 {[%emt 0:00:01]} Ke6 {[%emt 0:01:08]} 61. Kd4 {[%emt 0:00:17]} Rxb5 {[%emt 0:00:26]} 62. Rxa7 {[%emt 0:00:04]} Kxd6 {[%emt 0:00:44]} 63. Rxh7 {[%emt 0:00:05]} Rb4+ {[%emt 0:00:09]} 64. Ke3 {[%emt 0:00:09]} Kd5 {[%emt 0:00:30]} 65. Kf3 {[%emt 0:00:50]} Rb6 {[%emt 0:00:54]} 66. Rf7 {[%emt 0:01:47]} Rb3+ {[%emt 0:00:33]} 67. Kg4 {[%emt 0:00:04]} Rb1 {[%emt 0:00:04]} 68. Rf6 {[%emt 0:00:19]} Rg1+ {[%emt 0:00:05]} 69. Kf3 {[%emt 0:00:20]} Rf1+ {[%emt 0:00:47]} 70. Kg3 {[%emt 0:00:15]} Ke4 {[%emt 0:00:27]} 71. Re6+ {[%emt 0:00:08]} 1-0